fUSD/lending_fUSD_20240814
["ID","MTS","AMOUNT","RATE_DAILY","PERIOD"]
[334819369,1723603922243,-609.36,0.00015068,2]
[334819370,1723603922253,-500.0,0.00015068,2]
[334819371,1723603922262,-880.05,0.00015068,2]
[334819372,1723603922271,-500.0,0.00015068,2]
[334819373,1723603922281,-1173.02,0.00015068,2]
[334819374,1723603922290,-500.0,0.00015068,2]
[334819375,1723603922299,-2224.37,0.00015068,2]
[334819376,1723603922309,-1181.05,0.00015068,2]
[334819377,1723603922318,-500.0,0.00015068,2]
[334819378,1723603922328,-500.0,0.00015068,2]
[334819379,1723603922337,-500.0,0.00015068,2]
[334819380,1723603922347,-725.28,0.00015068,2]
[334819381,1723603922356,-500.0,0.00015068,2]
[334819382,1723603922366,-500.0,0.00015068,2]
[334819383,1723603922383,-500.0,0.00015068,2]
[334819384,1723603922404,-3779.35,0.00015068,2]
[334819385,1723603922422,-9040.84,0.00015068,2]
[334819386,1723603922442,-1046.28,0.00015068,2]
[334819387,1723603922462,-1939.79,0.00015068,2]
[334819388,1723603922479,-1333.4,0.00015068,2]
[334819389,1723603922500,-767.18,0.00015068,2]
[334819390,1723603922516,-1164.04,0.00015068,2]
[334819391,1723603922533,-500.0,0.00015068,2]
[334819392,1723603922554,-500.0,0.00015068,2]
[334819393,1723603922571,-500.0,0.00015068,2]
[334819394,1723603922584,-500.0,0.00015068,2]
[334819395,1723603922602,-1701.51,0.00015068,2]
[334819396,1723603922617,-500.0,0.00015068,2]
[334819397,1723603922633,-500.0,0.00015068,2]
[334819398,1723603922646,-1301.52,0.00015068,2]
[334819399,1723603922664,-6185.17,0.00015068,2]
[334819400,1723603922680,-500.0,0.00015068,2]
[334819401,1723603922696,-500.0,0.00015068,2]
[334819402,1723603922712,-500.0,0.00015068,2]
[334819403,1723603922728,-400.0,0.00015068,2]
[334819404,1723603922743,-3208.28,0.00015068,2]
[334819405,1723603922758,-1318.76,0.00015068,2]
[334819406,1723603922774,-800.93,0.00015068,2]
[334819407,1723603922788,-1811.7,0.00015068,2]
[334819408,1723603922803,-566.62,0.00015068,2]
[334819409,1723603922818,-1246.41,0.00015068,2]
[334819410,1723603922833,-3837.15,0.00015068,2]
[334819411,1723603922849,-500.0,0.00015068,2]
[334819412,1723603922864,-1088.88,0.00015068,2]
[334819413,1723603922879,-749.39,0.00015068,2]
[334819414,1723603922894,-500.0,0.00015068,2]
[334819415,1723603922909,-3163.1,0.00015068,2]
[334819416,1723603922923,-500.0,0.00015068,2]
[334819417,1723603922938,-500.0,0.00015068,2]
[334819418,1723603922953,-3420.09,0.00015068,2]
[334819419,1723603922972,-6114.43,0.00015068,2]
[334819420,1723603922987,-2037.52,0.00015068,2]
[334819421,1723603923002,-63525.08,0.00015068,2]
[334819422,1723603923017,-622.28,0.00015068,2]
[334819423,1723603923033,-978.75,0.00015068,2]
[334819424,1723603923049,-500.0,0.00015068,2]
[334819425,1723603923065,-500.0,0.00015068,2]
[334819426,1723603923080,-500.0,0.00015068,2]
[334819427,1723603923095,-22338.65,0.00015068,2]
[334819428,1723603923111,-3038.65,0.00015068,2]
[334819429,1723603923126,-500.0,0.00015068,2]
[334819430,1723603923141,-518.31,0.00015068,2]
[334819431,1723603923157,-3343.58,0.00015068,2]
[334819432,1723603923174,-500.0,0.00015068,2]
[334819433,1723603923190,-2760.28,0.00015068,2]
[334819434,1723603923205,-500.0,0.00015068,2]
[334819435,1723603923220,-1040.52,0.00015068,2]
[334819436,1723603923235,-3325.87,0.00015068,2]
[334819437,1723603923251,-1000.0,0.00015068,2]
[334819438,1723603923266,-1095.39,0.00015068,2]
[334819439,1723603923283,-773.26,0.00015068,2]
[334819440,1723603923298,-500.0,0.00015068,2]
[334819441,1723603923314,-8871.6,0.00015068,2]
[334819442,1723603923330,-505.76595126,0.00015068,2]
[334819443,1723603923345,-4053.29,0.00015068,2]
[334819444,1723603923361,-500.0,0.00015068,2]
[334819445,1723603923376,-500.0,0.00015068,2]
[334819446,1723603923392,-184.64032341,0.00015068,2]
[334819447,1723603923408,-1012.12,0.00015068,2]
[334819448,1723603923424,-516.7949008,0.00015068,2]
[334819449,1723603923441,-1400.49,0.00015068,2]
[334819450,1723603923457,-500.0,0.00015068,2]
[334819451,1723603923473,-948.38,0.00015068,2]
[334819452,1723603923489,-1923.55,0.00015068,2]
[334819453,1723603923506,-574.76,0.00015068,2]
[334819454,1723603923521,-500.0,0.00015068,2]
[334819455,1723603923537,-756.47,0.00015068,2]
[334819456,1723603923552,-1806.66,0.00015068,2]
[334819457,1723603923567,-1028.89,0.00015068,2]
[334819458,1723603923583,-500.0,0.00015068,2]
[334819459,1723603923598,-5711.31,0.00015068,2]
[334819460,1723603923612,-500.0,0.00015068,2]
[334819461,1723603923628,-5949.67,0.00015068,2]
[334819462,1723603923643,-500.0,0.00015068,2]
[334819463,1723603923658,-2287.9,0.00015068,2]
[334819464,1723603923675,-500.0,0.00015068,2]
[334819465,1723603923689,-500.0,0.00015068,2]
[334819466,1723603923705,-1165.14,0.00015068,2]
[334819467,1723603923721,-500.0,0.00015068,2]
[334819468,1723603923735,-500.0,0.00015068,2]
[334819469,1723603923752,-500.0,0.00015068,2]
[334819470,1723603923768,-500.0,0.00015068,2]
[334819471,1723603923786,-3527.81,0.00015068,2]
[334819472,1723603923802,-500.0,0.00015068,2]
[334819473,1723603923818,-503.89,0.00015068,2]
[334819474,1723603923834,-500.0,0.00015068,2]
[334819475,1723603923850,-657.34,0.00015068,2]
[334819476,1723603923868,-4643.86,0.00015068,2]
[334819477,1723603923885,-500.0,0.00015068,2]
[334819478,1723603923901,-5304.78,0.00015068,2]
[334819479,1723603923916,-500.0,0.00015068,2]
[334819480,1723603923933,-793.68,0.00015068,2]
[334819481,1723603923949,-1291.51,0.00015068,2]
[334819482,1723603923967,-500.0,0.00015068,2]
[334819483,1723603923982,-3534.72,0.00015068,2]
[334819484,1723603924000,-866.3,0.00015068,2]
[334819485,1723603924017,-4085.63,0.00015068,2]
[334819486,1723603924045,-375.59658906,0.00015068,2]
[334819487,1723603924060,-500.0,0.00015068,2]
[334819488,1723603924077,-500.0,0.00015068,2]
[334819489,1723603924093,-1860.39,0.00015068,2]
[334819490,1723603924109,-500.0,0.00015068,2]
[334819491,1723603924125,-500.0,0.00015068,2]
[334819492,1723603924141,-500.0,0.00015068,2]
[334819493,1723603924157,-500.0,0.00015068,2]
[334819494,1723603924173,-8721.03,0.00015068,2]
[334819495,1723603924188,-545.46,0.00015068,2]
[334819496,1723603924205,-500.0,0.00015068,2]
[334819497,1723603924221,-623.86111163,0.00015068,2]
[334819498,1723603924238,-505.23,0.00015068,2]
[334819499,1723603924254,-2674.62,0.00015068,2]
[334819500,1723603924271,-500.0,0.00015068,2]
[334819501,1723603924288,-726.24,0.00015068,2]
[334819502,1723603924304,-1060.17,0.00015068,2]
[334819503,1723603924321,-500.0,0.00015068,2]
[334819504,1723603924338,-610.94347207,0.00015068,2]
[334819505,1723603924355,-2300.78,0.00015068,2]
[334819506,1723603924374,-1807.13,0.00015068,2]
[334819507,1723603924391,-500.0,0.00015068,2]
[334819508,1723603924408,-1069.54,0.00015068,2]
[334819509,1723603924425,-500.0,0.00015068,2]
[334819510,1723603924442,-4235.05,0.00015068,2]
[334819511,1723603924459,-500.0,0.00015068,2]
[334819512,1723603924475,-9482.49,0.00015068,2]
[334819513,1723603924491,-3912.2,0.00015068,2]
[334819514,1723603924510,-1133.78,0.00015068,2]
[334819515,1723603924529,-674.92,0.00015068,2]
[334819516,1723603924547,-500.0,0.00015068,2]
[334819517,1723603924564,-513.4456143,0.00015068,2]
[334819518,1723603924582,-700.06,0.00015068,2]
[334819519,1723603924600,-500.0,0.00015068,2]
[334819520,1723603924616,-3352.95,0.00015068,2]
[334819521,1723603924633,-550.05,0.00015068,2]
[334819522,1723603924650,-500.0,0.00015068,2]
[334819523,1723603924669,-5658.96,0.00015068,2]
[334819524,1723603924686,-1004.73,0.00015068,2]
[334819525,1723603924704,-500.0,0.00015068,2]
[334819526,1723603924721,-500.0,0.00015068,2]
[334819527,1723603924737,-4266.51,0.00015068,2]
[334819528,1723603924755,-2152.34,0.00015068,2]
[334819529,1723603924772,-2495.73,0.00015068,2]
[334819530,1723603924789,-500.0,0.00015068,2]
[334819531,1723603924805,-500.0,0.00015068,2]
[334819532,1723603924821,-500.0,0.00015068,2]
[334819533,1723603924836,-3010.43,0.00015068,2]
[334819534,1723603924851,-712.46,0.00015068,2]
[334819535,1723603924865,-1442.97,0.00015068,2]
[334819536,1723603924880,-379.40092823,0.00015068,2]
[334819537,1723603925266,-500.0,0.00015068,2]
[334819538,1723603925284,-4860.84,0.00015068,2]
[334819539,1723603925294,-936.95,0.00015068,2]
[334819540,1723603925303,-211.28041616,0.00015068,2]
[334819541,1723603925312,-2182.64,0.00015068,2]
[334819542,1723603925322,-545.37,0.00015068,2]
[334819543,1723603925331,-500.0,0.00015068,2]
[334819544,1723603925340,-517.19,0.00015068,2]
[334819545,1723603925350,-972.49,0.00015068,2]
[334819546,1723603925359,-5817.55,0.00015068,2]
[334819547,1723603925369,-488.90378693,0.00015068,2]
[334819548,1723603925379,-500.0,0.00015068,2]
[334819549,1723603925389,-16358.47,0.00015068,2]
[334819550,1723603925400,-500.0,0.00015068,2]
[334819551,1723603925410,-500.0,0.00015068,2]
[334819552,1723603925420,-1343.6,0.00015068,2]
[334819553,1723603925430,-1852.9,0.00015068,2]
[334819554,1723603925440,-1032.88,0.00015068,2]
[334819555,1723603925449,-500.0,0.00015068,2]
[334819556,1723603925459,-500.0,0.00015068,2]
[334819557,1723603925469,-1649.15,0.00015068,2]
[334819558,1723603925478,-12284.49,0.00015068,2]
[334819559,1723603925488,-1289.77,0.00015068,2]
[334819560,1723603925498,-500.0,0.00015068,2]
[334819561,1723603925507,-500.0,0.00015068,2]
[334819562,1723603925517,-500.0,0.00015068,2]
[334819563,1723603925527,-3024.67,0.00015068,2]
[334819564,1723603925537,-571.44,0.00015068,2]
[334819565,1723603925548,-1347.07,0.00015068,2]
[334819566,1723603925558,-500.0,0.00015068,2]
[334819567,1723603925567,-500.0,0.00015068,2]
[334819568,1723603925577,-209.16196137,0.00015068,2]
[334819569,1723603925586,-500.0,0.00015068,2]
[334819570,1723603925596,-2375.11,0.00015068,2]
[334819571,1723603925606,-5867.25,0.00015068,2]
[334819572,1723603925616,-1236.61,0.00015068,2]
[334819573,1723603925626,-15446.76,0.00015068,2]
[334819574,1723603925636,-500.0,0.00015068,2]
[334819575,1723603925646,-1109.97,0.00015068,2]
[334819576,1723603925658,-811.27,0.00015068,2]
[334819577,1723603925669,-500.0,0.00015068,2]
[334819578,1723603925680,-500.0,0.00015068,2]
[334819579,1723603925691,-500.0,0.00015068,2]
[334819580,1723603925702,-500.0,0.00015068,2]
[334819581,1723603925712,-1183.37,0.00015068,2]
[334819582,1723603925722,-504.60468686,0.00015068,2]
[334819583,1723603925731,-1985.01,0.00015068,2]
[334819584,1723603925741,-500.0,0.00015068,2]
[334819585,1723603925750,-500.0,0.00015068,2]
[334819586,1723603925760,-500.0,0.00015068,2]
[334819587,1723603925770,-500.0,0.00015068,2]
[334819588,1723603925780,-3394.27,0.00015068,2]
[334819589,1723603925790,-500.0,0.00015068,2]
[334819590,1723603925799,-500.0,0.00015068,2]
[334819591,1723603925809,-2263.87,0.00015068,2]
[334819592,1723603925820,-2351.17,0.00015068,2]
[334819593,1723603925830,-504.63,0.00015068,2]
[334819594,1723603925840,-2208.39,0.00015068,2]
[334819595,1723603925850,-500.0,0.00015068,2]
[334819596,1723603925859,-510.29546578,0.00015068,2]
[334819597,1723603925869,-500.0,0.00015068,2]
[334819598,1723603925878,-1991.48,0.00015068,2]
[334819599,1723603925889,-534.4,0.00015068,2]
[334819600,1723603925901,-1195.4,0.00015068,2]
[334819601,1723603925912,-9415.38,0.00015068,2]
[334819602,1723603925921,-500.0,0.00015068,2]
[334819603,1723603925931,-500.0,0.00015068,2]
[334819604,1723603925940,-505.76,0.00015068,2]
[334819605,1723603925950,-694.34,0.00015068,2]
[334819606,1723603925964,-5022.91,0.00015068,2]
[334819607,1723603925973,-500.0,0.00015068,2]
[334819608,1723603925983,-3719.98,0.00015068,2]
[334819609,1723603925994,-3286.97,0.00015068,2]
[334819610,1723603926005,-500.0,0.00015068,2]
[334819611,1723603926015,-2601.74,0.00015068,2]
[334819612,1723603926026,-2311.62,0.00015068,2]
[334819613,1723603926039,-500.0,0.00015068,2]
[334819614,1723603926049,-925.2,0.00015068,2]
[334819615,1723603926058,-500.0,0.00015068,2]
[334819616,1723603926068,-500.0,0.00015068,2]
[334819617,1723603926077,-4841.27,0.00015068,2]
[334819618,1723603926088,-500.0,0.00015068,2]
[334819619,1723603926099,-500.0,0.00015068,2]
[334819620,1723603926109,-4804.39,0.00015068,2]
[334819621,1723603926118,-2504.28,0.00015068,2]
[334819622,1723603926129,-30408.94,0.00015068,2]
[334819623,1723603926139,-500.0,0.00015068,2]
[334819624,1723603926152,-1009.0,0.00015068,2]
[334819625,1723603926163,-500.0,0.00015068,2]
[334819626,1723603926172,-500.0,0.00015068,2]
[334819627,1723603926181,-1655.13,0.00015068,2]
[334819628,1723603926191,-500.0,0.00015068,2]
[334819629,1723603926200,-500.0,0.00015068,2]
[334819630,1723603926209,-500.0,0.00015068,2]
[334819631,1723603926219,-500.0,0.00015068,2]
[334819632,1723603926228,-541.79,0.00015068,2]
[334819633,1723603926238,-1939.34,0.00015068,2]
[334819634,1723603926247,-602.44,0.00015068,2]
[334819635,1723603926258,-500.0,0.00015068,2]
[334819636,1723603926267,-500.0,0.00015068,2]
[334819637,1723603926277,-5437.68,0.00015068,2]
[334819638,1723603926286,-3634.01,0.00015068,2]
[334819639,1723603926296,-500.0,0.00015068,2]
[334819640,1723603926305,-500.0,0.00015068,2]
[334819641,1723603926315,-7831.1,0.00015068,2]
[334819642,1723603926325,-500.0,0.00015068,2]
[334819643,1723603926334,-1038.5,0.00015068,2]
[334819644,1723603926343,-7282.92,0.00015068,2]
[334819645,1723603926353,-1618.42,0.00015068,2]
[334819646,1723603926362,-500.0,0.00015068,2]
[334819647,1723603926371,-3021.74,0.00015068,2]
[334819648,1723603926380,-1318.54,0.00015068,2]
[334819649,1723603926390,-887.76,0.00015068,2]
[334819650,1723603926400,-726.19,0.00015068,2]
[334819651,1723603926410,-500.0,0.00015068,2]
[334819652,1723603926419,-500.0,0.00015068,2]
[334819653,1723603926429,-500.0,0.00015068,2]
[334819654,1723603926439,-640.09,0.00015068,2]
[334819655,1723603926448,-6303.41,0.00015068,2]
[334819656,1723603926458,-1486.12,0.00015068,2]
[334819657,1723603926468,-500.0,0.00015068,2]
[334819658,1723603926477,-1465.83,0.00015068,2]
[334819659,1723603926487,-500.0,0.00015068,2]
[334819660,1723603926497,-2619.71,0.00015068,2]
[334819661,1723603926506,-500.0,0.00015068,2]
[334819662,1723603926516,-1599.17,0.00015068,2]
[334819663,1723603926526,-2403.52,0.00015068,2]
[334819664,1723603926536,-6526.45,0.00015068,2]
[334819665,1723603926545,-775.24,0.00015068,2]
[334819666,1723603926555,-500.0,0.00015068,2]
[334819667,1723603926565,-617.42,0.00015068,2]
[334819668,1723603926574,-500.0,0.00015068,2]
[334819669,1723603926584,-2020.58,0.00015068,2]
[334819670,1723603926594,-564.1,0.00015068,2]
[334819671,1723603926603,-500.0,0.00015068,2]
[334819672,1723603926612,-3030.89,0.00015068,2]
[334819673,1723603926622,-500.0,0.00015068,2]
[334819674,1723603926631,-970.69,0.00015068,2]
[334819675,1723603926640,-1492.57,0.00015068,2]
[334819676,1723603926651,-500.0,0.00015068,2]
[334819677,1723603926660,-500.0,0.00015068,2]
[334819678,1723603926669,-500.0,0.00015068,2]
[334819679,1723603926679,-8083.22,0.00015068,2]
[334819680,1723603926688,-2641.04,0.00015068,2]
[334819681,1723603926698,-748.52,0.00015068,2]
[334819682,1723603926708,-500.0,0.00015068,2]
[334819683,1723603926717,-3609.21,0.00015068,2]
[334819684,1723603926727,-500.0,0.00015068,2]
[334819685,1723603926737,-500.0,0.00015068,2]
[334819686,1723603926747,-776.31,0.00015068,2]
[334819687,1723603926756,-500.0,0.00015068,2]
[334819688,1723603926767,-500.0,0.00015068,2]
[334819689,1723603926776,-6500.63,0.00015068,2]
[334819690,1723603926786,-500.0,0.00015068,2]
[334819691,1723603926797,-495.36697344,0.00015068,2]
[334819692,1723603926806,-500.0,0.00015068,2]
[334819693,1723603926817,-654.47,0.00015068,2]
[334819694,1723603926826,-406.95865194,0.00015068,2]
[334819695,1723603926836,-12415.65,0.00015068,2]
[334819696,1723603926845,-500.0,0.00015068,2]
[334819697,1723603926855,-500.0,0.00015068,2]
[334819698,1723603926865,-851.45,0.00015068,2]
[334819699,1723603926875,-514.11,0.00015068,2]
[334819700,1723603926886,-510.91093356,0.00015068,2]
[334819701,1723603926896,-1374.17,0.00015068,2]
[334819702,1723603926908,-500.0,0.00015068,2]
[334819703,1723603926918,-771.96,0.00015068,2]
[334819704,1723603926927,-500.0,0.00015068,2]
[334819705,1723603926937,-500.0,0.00015068,2]
[334819706,1723603926946,-500.0,0.00015068,2]
[334819707,1723603926956,-1584.87,0.00015068,2]
[334819708,1723603926968,-733.22,0.00015068,2]
[334819709,1723603926978,-500.0,0.00015068,2]
[334819710,1723603926987,-2100.84,0.00015068,2]
[334819711,1723603926996,-6987.78,0.00015068,2]
[334819712,1723603927008,-500.0,0.00015068,2]
[334819713,1723603927019,-500.0,0.00015068,2]
[334819714,1723603927030,-1120.07,0.00015068,2]
[334819715,1723603927041,-1120.07,0.00015068,2]
[334819716,1723603927050,-500.0,0.00015068,2]
[334819717,1723603927059,-1120.07,0.00015068,2]
[334819718,1723603927070,-1120.07,0.00015068,2]
[334819719,1723603927079,-500.0,0.00015068,2]
[334819720,1723603927088,-1120.07,0.00015068,2]
[334819721,1723603927098,-37359.85,0.00015068,2]
[334819722,1723603927107,-1120.07,0.00015068,2]
[334819723,1723603927117,-500.0,0.00015068,2]
[334819724,1723603927127,-1120.07,0.00015068,2]
[334819725,1723603927136,-500.0,0.00015068,2]
[334819726,1723603927146,-4485.26,0.00015068,2]
[334819727,1723603927157,-1120.07,0.00015068,2]
[334819728,1723603927167,-1120.07,0.00015068,2]
[334819729,1723603927176,-801.55,0.00015068,2]
[334819730,1723603927185,-3325.54,0.00015068,2]
[334819731,1723603927196,-1120.07,0.00015068,2]
[334819732,1723603927205,-3101.62,0.00015068,2]
[334819733,1723603927215,-1120.07,0.00015068,2]
[334819734,1723603927224,-1740.94,0.00015068,2]
[334819735,1723603927234,-1120.07,0.00015068,2]
[334819736,1723603927244,-1120.07,0.00015068,2]
[334819737,1723603927254,-1120.07,0.00015068,2]
[334819738,1723603927264,-500.0,0.00015068,2]
[334819739,1723603927274,-1120.07,0.00015068,2]
[334819740,1723603927283,-1120.07,0.00015068,2]
[334819741,1723603927292,-706.4,0.00015068,2]
[334819742,1723603927301,-1120.07,0.00015068,2]
[334819743,1723603927311,-1120.07,0.00015068,2]
[334819744,1723603927320,-500.0,0.00015068,2]
[334819745,1723603927329,-561.38294496,0.00015068,2]
[334819746,1723603927338,-1120.07,0.00015068,2]
[334819747,1723603927348,-551.94,0.00015068,2]
[334819748,1723603927357,-1120.07,0.00015068,2]
[334819749,1723603927366,-1120.07,0.00015068,2]
[334819750,1723603927376,-6739.6,0.00015068,2]
[334819751,1723603927385,-1120.07,0.00015068,2]
[334819752,1723603927395,-1120.07,0.00015068,2]
[334819753,1723603927406,-500.0,0.00015068,2]
[334819754,1723603927416,-1120.19094717,0.00015068,2]
[334819755,1723603927425,-500.0,0.00015068,2]
[334819756,1723603927435,-1984.33,0.00015068,2]
[334819757,1723603927444,-515.72,0.00015068,2]
[334819758,1723603927454,-500.0,0.00015068,2]
[334819759,1723603927463,-885.1,0.00015068,2]
[334819760,1723603927473,-862.92,0.00015068,2]
[334819761,1723603927482,-1280.3,0.00015068,2]
[334819762,1723603927492,-1985.9,0.00015068,2]
[334819763,1723603927501,-500.0,0.00015068,2]
[334819764,1723603927511,-4340.54,0.00015068,2]
[334819765,1723603927520,-954.48,0.00015068,2]
[334819766,1723603927530,-7538.05,0.00015068,2]
[334819767,1723603927540,-500.0,0.00015068,2]
[334819768,1723603927549,-2350.15,0.00015068,2]
[334819769,1723603927559,-500.0,0.00015068,2]
[334819770,1723603927568,-1823.31,0.00015068,2]
[334819771,1723603927577,-500.0,0.00015068,2]
[334819772,1723603927586,-152.47241704,0.00015115,2]
[334819773,1723603927596,-212.95472439,0.00015121,2]
[334819774,1723603927605,-400.0,0.00015121,2]
[334819775,1723603927615,-152.47241704,0.00015224,2]
[334819776,1723603927623,-251.84,0.00015283,2]
[334819777,1723603927633,-150.0,0.00015295,2]
[334819778,1723603927642,-158756.05,0.00015305,6]
[334819779,1723603927654,-285020.02,0.00015305,6]
[334819780,1723603927663,-150.0,0.00015321,2]
[334819781,1723603927672,-512.5101983,0.00015331,2]
[334819782,1723603927681,-3114.6614692,0.00015331,2]
[334819783,1723603927691,-2467.9241017,0.00015331,2]
[334819784,1723603927700,-152.47241704,0.00015332,2]
[334819785,1723603927709,-500.0,0.00015342,2]
[334819786,1723603927718,-1500.86,0.00015342,2]
[334819787,1723603927727,-500.0,0.00015342,2]
[334819788,1723603927737,-500.0,0.00015342,2]
[334819789,1723603927747,-500.0,0.00015342,2]
[334819790,1723603927756,-500.0,0.00015342,2]
[334819791,1723603927765,-500.0,0.00015342,2]
[334819792,1723603927775,-500.0,0.00015342,2]
[334819793,1723603927785,-500.0,0.00015342,2]
[334819794,1723603927794,-500.0,0.00015342,2]
[334819795,1723603927803,-500.0,0.00015342,2]
[334819796,1723603927812,-500.0,0.00015342,2]
[334819797,1723603927822,-1717.68,0.00015342,2]
[334819798,1723603927831,-500.0,0.00015342,2]
[334819799,1723603927841,-500.0,0.00015342,2]
[334819800,1723603927851,-1135.6,0.00015342,2]
[334819801,1723603927860,-500.0,0.00015342,2]
[334819802,1723603927870,-502.49107905,0.00015342,2]
[334819803,1723603927879,-500.0,0.00015342,2]
[334819804,1723603927888,-500.0,0.00015342,2]
[334819805,1723603927899,-500.0,0.00015342,2]
[334819806,1723603927908,-500.0,0.00015342,2]
[334819807,1723603927918,-500.0,0.00015342,2]
[334819808,1723603927927,-505.87,0.00015342,2]
[334819809,1723603927936,-668.17,0.00015342,2]
[334819810,1723603927945,-2087.27,0.00015342,2]
[334819811,1723603927955,-1187.42,0.00015342,2]
[334819812,1723603927967,-504.46,0.00015342,2]
[334819813,1723603927976,-500.0,0.00015342,2]
[334819814,1723603927986,-500.0,0.00015342,2]
[334819815,1723603927995,-500.0,0.00015342,2]
[334819816,1723603928004,-639.38,0.00015342,2]
[334819817,1723603928014,-500.0,0.00015342,2]
[334819818,1723603928024,-500.0,0.00015342,2]
[334819819,1723603928033,-500.0,0.00015342,2]
[334819820,1723603928044,-500.0,0.00015342,2]
[334819821,1723603928055,-500.0,0.00015342,2]
[334819822,1723603928064,-500.0,0.00015342,2]
[334819823,1723603928074,-500.0,0.00015342,2]
[334819824,1723603928083,-1269.99,0.00015342,2]
[334819825,1723603928092,-500.0,0.00015342,2]
[334819826,1723603928101,-500.0,0.00015342,2]
[334819827,1723603928110,-500.0,0.00015342,2]
[334819828,1723603928119,-500.0,0.00015342,2]
[334819829,1723603928129,-500.0,0.00015342,2]
[334819830,1723603928142,-500.0,0.00015342,2]
[334819831,1723603928154,-711.22,0.00015342,2]
[334819832,1723603928164,-942.4,0.00015342,2]
[334819833,1723603928174,-500.0,0.00015342,2]
[334819834,1723603928183,-1243.83,0.00015342,2]
[334819835,1723603928192,-1433.34,0.00015342,2]
[334819836,1723603928201,-500.0,0.00015342,2]
[334819837,1723603928211,-641.88,0.00015342,2]
[334819838,1723603928220,-500.0,0.00015342,2]
[334819839,1723603928230,-681.49,0.00015342,2]
[334819840,1723603928239,-596.25,0.00015342,2]
[334819841,1723603928248,-514.21,0.00015342,2]
[334819842,1723603928258,-500.0,0.00015342,2]
[334819843,1723603928268,-500.0,0.00015342,2]
[334819844,1723603928278,-500.0,0.00015342,2]
[334819845,1723603928289,-840.72,0.00015342,2]
[334819846,1723603928299,-157.056626,0.00015342,2]
[334819847,1723603928311,-151.377752,0.00015342,2]
[334819848,1723603928322,-500.0,0.00015342,2]
[334819849,1723603928331,-519.79,0.00015342,2]
[334819850,1723603928341,-500.0,0.00015342,2]
[334819851,1723603928350,-500.0,0.00015342,2]
[334819852,1723603928359,-261.440025,0.00015342,2]
[334819853,1723603928369,-1752.99,0.00015342,2]
[334819854,1723603928378,-500.0,0.00015342,2]
[334819855,1723603928388,-500.0,0.00015342,2]
[334819856,1723603928397,-681.04,0.00015342,2]
[334819857,1723603928409,-500.0,0.00015342,2]
[334819858,1723603928419,-500.0,0.00015342,2]
[334819859,1723603928428,-500.0,0.00015342,2]
[334819860,1723603928438,-500.0,0.00015342,2]
[334819861,1723603928447,-500.0,0.00015342,2]
[334819862,1723603928457,-500.0,0.00015342,2]
[334819863,1723603928467,-500.0,0.00015342,2]
[334819864,1723603928476,-500.0,0.00015342,2]
[334819865,1723603928486,-500.0,0.00015342,2]
[334819866,1723603928495,-500.0,0.00015342,2]
[334819867,1723603928505,-515.84,0.00015342,2]
[334819868,1723603928514,-500.0,0.00015342,2]